bitfinex/quotes_BTCUSD_20230120
["timestamp","ask_amount","ask_price","bid_price","bid_amount"]
[1674240616666,0.1596,21392.0,21390.0,0.00630087]
[1674240616939,0.330393,21391.0,21390.0,0.00630087]
[1674240617425,0.330393,21391.0,21390.0,0.00530087]
[1674240617427,0.335393,21391.0,21390.0,0.01030087]
[1674240617686,0.7955935,21391.0,21390.0,0.00530087]
[1674240617936,0.7905935,21391.0,21390.0,0.00630087]
[1674240618211,0.7905935,21391.0,21390.0,0.00530087]
[1674240618506,0.8305935,21391.0,21390.0,0.00630087]
[1674240620041,0.83100212,21391.0,21390.0,0.00630087]
[1674240620810,0.37080162,21391.0,21390.0,0.00630087]
[1674240621290,0.82140401,21391.0,21390.0,0.00630087]
[1674240623090,0.49101101,21391.0,21390.0,0.00630087]
[1674240623343,0.80956901,21391.0,21390.0,0.00630087]
[1674240624370,0.49101101,21391.0,21390.0,0.00630087]
[1674240624634,0.81976401,21391.0,21390.0,0.00630087]
[1674240624902,0.04040862,21391.0,21390.0,0.00630087]
[1674240625154,0.04040862,21391.0,21389.0,0.23764083]
[1674240625717,0.04040862,21391.0,21390.0,0.15]
[1674240625971,0.04040862,21391.0,21390.0,0.617508]
[1674240626235,0.04040862,21391.0,21390.0,1.085016]
[1674240626486,0.00040862,21391.0,21390.0,1.085016]
[1674240627260,0.04140862,21391.0,21390.0,1.122016]
[1674240629367,0.03726776,21391.0,21390.0,2.89540397]
[1674240629617,0.02295809,21391.0,21390.0,3.3436586]
[1674240629879,0.02295809,21391.0,21390.0,3.71066268]
[1674240630165,0.35084188,21397.0,21390.0,3.932578]
[1674240630421,10.16281405,21400.0,21393.0,0.0748]
[1674240630673,10.16281405,21400.0,21395.0,1.402188]
[1674240630921,0.36862467,21399.0,21395.0,1.402188]
[1674240631171,0.51862467,21399.0,21395.0,1.438188]
[1674240631445,0.36862467,21399.0,21395.0,1.438188]
[1674240631917,0.006,21397.0,21395.0,1.438188]
[1674240632171,0.36862467,21399.0,21396.0,0.15]
[1674240632456,0.37462467,21399.0,21397.0,1.402065]
[1674240632985,0.05007073,21398.0,21397.0,1.402065]
[1674240633248,0.05007073,21398.0,21397.0,1.438065]
[1674240633492,0.5673842,21398.0,21397.0,1.438065]
[1674240634047,0.5673842,21398.0,21397.0,0.97071]
[1674240634563,0.5673842,21398.0,21397.0,0.99671]
[1674240634826,0.05007073,21398.0,21397.0,0.97071]
[1674240635093,0.05607073,21398.0,21397.0,0.99671]
[1674240636450,0.43221513,21398.0,21397.0,0.99671]
[1674240636968,0.05607073,21398.0,21397.0,0.99671]
[1674240637219,0.05607073,21398.0,21397.0,1.14671]
[1674240637732,0.05607073,21398.0,21397.0,0.99671]
[1674240637980,0.55899981,21398.0,21397.0,0.99671]
[1674240640282,0.55899981,21398.0,21397.0,0.529355]
[1674240640602,1.437998,21398.0,21397.0,0.062]
[1674240640814,0.95539581,21398.0,21397.0,0.062]
[1674240641056,1.10539581,21398.0,21397.0,0.062]
[1674240642346,0.72948673,21398.0,21397.0,0.062]
[1674240642614,0.96065784,21398.0,21397.0,0.062]
[1674240645386,0.3352209,21397.0,21395.0,0.30541266]
[1674240645642,0.336109,21396.0,21394.0,0.467415]
[1674240645896,0.3352209,21397.0,21394.0,0.467415]
[1674240646156,0.3352209,21397.0,21394.0,0.934835]
[1674240646407,0.3352209,21397.0,21394.0,0.71305811]
[1674240647199,0.3352209,21397.0,21395.0,0.15]
[1674240647447,0.009,21396.0,21395.0,0.617385]
[1674240647697,0.3352209,21397.0,21395.0,1.084783]
[1674240647957,0.3442209,21397.0,21395.0,1.084783]
[1674240648210,0.3352209,21397.0,21395.0,1.084783]
[1674240648482,0.3442209,21397.0,21395.0,1.086783]
[1674240651738,0.3442209,21397.0,21395.0,0.936783]
[1674240651993,0.41901254,21396.0,21395.0,0.936783]
[1674240653268,0.41901254,21396.0,21395.0,0.934783]
[1674240653516,0.42801254,21396.0,21395.0,0.936783]
[1674240656372,0.009,21396.0,21395.0,0.936783]
[1674240657156,0.009,21396.0,21395.0,1.086783]
[1674240659218,0.009,21396.0,21395.0,0.85639548]
[1674240659469,0.009,21396.0,21395.0,0.96788726]
[1674240659749,0.009,21396.0,21395.0,0.85639548]
[1674240660241,0.009,21396.0,21395.0,0.89239548]
[1674240661799,0.009,21396.0,21395.0,0.74239548]
[1674240662383,0.009,21396.0,21395.0,0.89239548]
[1674240663674,0.009,21396.0,21395.0,0.74239548]
[1674240664701,0.67530328,21396.0,21395.0,0.74239548]
[1674240664990,0.98529728,21396.0,21395.0,0.74239548]
[1674240665244,0.67530328,21396.0,21395.0,0.74239548]
[1674240665494,1.00644728,21396.0,21395.0,0.74239548]
[1674240666006,0.90256351,21396.0,21395.0,0.74239548]
[1674240666828,0.90256351,21396.0,21395.0,0.27499748]
[1674240667088,0.36021023,21396.0,21395.0,0.27499748]
[1674240667340,0.04241423,21396.0,21395.0,0.505398]
[1674240668059,0.04241423,21396.0,21395.0,0.645398]
[1674240668321,0.04241423,21396.0,21395.0,0.495398]
[1674240668322,0.52291967,21396.0,21395.0,0.495398]
[1674240669087,0.39589967,21396.0,21395.0,0.962796]
[1674240670169,0.70379467,21396.0,21395.0,0.962796]
[1674240670623,0.39589967,21396.0,21395.0,0.962796]
[1674240671136,0.71803367,21396.0,21395.0,0.962796]
[1674240671421,0.39589967,21396.0,21395.0,0.962796]
[1674240671663,0.72287567,21396.0,21395.0,0.962796]
[1674240672192,0.39589967,21396.0,21395.0,0.028]
[1674240672746,0.70935267,21396.0,21395.0,0.028]
[1674240674085,0.35586723,21396.0,21395.0,0.028]
[1674240674339,0.50496723,21396.0,21395.0,0.028]
[1674240674601,0.90022487,21396.0,21395.0,0.028]
[1674240674869,0.97234423,21396.0,21395.0,0.028]
[1674240675126,1.58972123,21396.0,21395.0,0.028]
[1674240675671,1.8366296,21396.0,21395.0,0.028]
[1674240675934,1.9186296,21396.0,21395.0,0.028]
[1674240676197,3.08245226,21396.0,21391.0,0.00056242]
[1674240676459,1.30393535,21395.0,21391.0,0.00056242]
[1674240676730,0.32577,21392.0,21391.0,0.00056242]
[1674240676996,1.58134,21392.0,21391.0,0.00056242]
[1674240677280,1.73134,21392.0,21391.0,0.00056242]
[1674240677788,2.14995196,21392.0,21391.0,0.00056242]
[1674240678107,1.73134,21392.0,21391.0,0.00056242]
[1674240678370,2.34759522,21392.0,21391.0,0.00056242]
[1674240678647,2.51339522,21392.0,21391.0,0.00056242]
[1674240678898,2.42239522,21392.0,21391.0,0.00056242]
[1674240679171,2.51339522,21392.0,21391.0,0.00056242]
[1674240679453,2.12239522,21392.0,21391.0,0.00056242]
[1674240679711,2.21339522,21392.0,21391.0,0.00056242]
[1674240679970,2.12239522,21392.0,21391.0,0.00056242]
[1674240680230,2.21339522,21392.0,21391.0,0.00056242]
[1674240680488,1.80614,21392.0,21391.0,0.00056242]
[1674240680772,1.89714,21392.0,21391.0,0.00056242]
[1674240681273,2.19354075,21392.0,21391.0,0.00056242]
[1674240681535,2.25254075,21392.0,21391.0,0.00056242]
[1674240681835,2.34354075,21392.0,21391.0,0.00056242]
[1674240682142,2.25254075,21392.0,21391.0,0.00056242]
[1674240682405,1.63507675,21392.0,21391.0,0.00056242]
[1674240682659,1.48547675,21392.0,21391.0,0.00056242]
[1674240682914,1.10901275,21392.0,21391.0,0.00056242]
[1674240683167,0.98506275,21392.0,21391.0,0.00056242]
[1674240683638,0.76704275,21392.0,21391.0,0.00056242]
[1674240684423,0.85704275,21392.0,21391.0,0.00056242]
[1674240684677,1.91469097,21392.0,21391.0,0.00056242]
[1674240684938,2.12513338,21392.0,21391.0,0.00056242]
[1674240685439,2.27513338,21392.0,21391.0,0.00056242]
[1674240685691,2.54917112,21392.0,21391.0,0.00056242]
[1674240685986,2.63917112,21392.0,21391.0,0.00056242]
[1674240687240,0.00056,21391.0,21388.0,0.00684924]
[1674240687490,2.66301969,21390.0,21388.0,0.00684924]
[1674240687738,1.26207569,21389.0,21388.0,0.00684924]
[1674240688012,2.34673569,21389.0,21388.0,0.00684924]
[1674240689028,2.43773569,21389.0,21388.0,0.00684924]
[1674240690308,1.960534,21389.0,21388.0,0.00684924]
[1674240690578,2.22434658,21389.0,21388.0,0.00684924]
[1674240690842,2.237285,21389.0,21388.0,0.00684924]
[1674240691186,1.877234,21389.0,21388.0,0.00684924]
[1674240692094,2.36293569,21389.0,21388.0,0.00684924]
[1674240692355,2.43773569,21389.0,21388.0,0.00684924]
[1674240693359,2.63205666,21389.0,21388.0,0.00684924]
[1674240693645,2.43773569,21389.0,21388.0,0.00684924]
[1674240693873,2.89472476,21389.0,21388.0,0.00684924]
[1674240695913,0.14315076,21388.0,21386.0,0.00549165]
[1674240696210,0.795224,21387.0,21386.0,0.00549165]
[1674240696475,0.945224,21387.0,21386.0,0.00549165]
[1674240696996,0.786724,21387.0,21386.0,0.00549165]
[1674240697242,0.877724,21387.0,21386.0,0.00549165]
[1674240698047,1.027724,21387.0,21386.0,0.00549165]
[1674240698592,1.30379514,21387.0,21386.0,0.00549165]
[1674240699581,2.03302,21387.0,21386.0,0.00549165]
[1674240699833,1.715447,21387.0,21386.0,0.00549165]
[1674240700618,1.45379514,21387.0,21386.0,0.00549165]
[1674240701680,0.83565958,21387.0,21386.0,0.00549165]
[1674240702187,0.98565958,21387.0,21386.0,0.00549165]
[1674240702452,1.45323258,21387.0,21386.0,0.00549165]
[1674240702728,1.92080558,21387.0,21386.0,0.00549165]
[1674240702998,1.79473444,21387.0,21386.0,0.00549165]
[1674240703761,1.13761166,21387.0,21386.0,0.00549165]
[1674240704009,1.94363444,21387.0,21386.0,0.00549165]
[1674240705071,3.6151571,21387.0,21381.0,0.00564908]
[1674240705364,0.47720169,21382.0,21381.0,4.908e-05]
[1674240705621,3.46053169,21382.0,21381.0,4.908e-05]
[1674240705894,2.50914869,21382.0,21381.0,4.908e-05]
[1674240706418,3.33131207,21382.0,21380.0,0.00735366]
[1674240706918,2.16412128,21381.0,21380.0,0.00735366]
[1674240707175,3.24862928,21381.0,21380.0,0.00735366]
[1674240708808,0.0007641,21379.0,21377.0,0.00655738]
[1674240709059,2.20191269,21378.0,21377.0,0.00655738]
[1674240709343,3.13877607,21378.0,21377.0,0.00655738]
[1674240710148,2.80881269,21378.0,21377.0,0.00655738]
[1674240710954,2.89981269,21378.0,21377.0,0.00655738]
[1674240711213,4.81901512,21378.0,21377.0,0.00655738]
[1674240712803,5.1489785,21378.0,21377.0,0.00655738]
[1674240713352,4.81901512,21378.0,21377.0,0.00655738]
[1674240713636,3.89241269,21378.0,21377.0,0.00655738]
[1674240713900,2.7587514,21378.0,21377.0,0.00655738]
[1674240714409,1.855001,21378.0,21377.0,0.00655738]
[1674240714915,2.65947907,21378.0,21377.0,0.00655738]
[1674240715171,2.65056952,21378.0,21377.0,0.00655738]
[1674240715434,2.99367881,21378.0,21377.0,0.00655738]
[1674240715697,2.19811029,21378.0,21377.0,0.00655738]
[1674240717500,0.3475061,21377.0,21374.0,0.6276643]
[1674240717754,0.314609,21376.0,21374.0,0.467852]
[1674240718007,0.333266,21375.0,21374.0,0.467852]
[1674240718565,0.19432097,21377.0,21374.0,0.467852]
[1674240718801,0.44302712,21377.0,21374.0,0.467852]
[1674240719055,0.19432097,21377.0,21374.0,0.467852]
[1674240719315,0.322682,21376.0,21374.0,0.467852]
[1674240719576,0.7669467,21375.0,21373.0,0.4750902]
[1674240719842,0.324222,21374.0,21373.0,0.0072302]
[1674240720921,0.324222,21374.0,21373.0,0.4751102]
[1674240721359,0.299306,21374.0,21373.0,0.0072302]
[1674240721817,0.390306,21374.0,21373.0,0.0072302]
[1674240722264,0.78703921,21374.0,21373.0,0.0072302]
[1674240723628,0.81843533,21374.0,21373.0,0.0072302]
[1674240723887,1.43629333,21374.0,21373.0,0.0072302]
[1674240724148,1.476022,21374.0,21373.0,0.0072302]
[1674240724416,1.008164,21374.0,21373.0,0.0072302]
[1674240724933,0.993364,21374.0,21373.0,0.0072302]
[1674240725247,1.9447541,21374.0,21373.0,0.0072302]
[1674240725788,1.9447541,21374.0,21373.0,0.0048402]
[1674240726041,1.94504974,21374.0,21373.0,0.0048402]
[1674240726302,2.01974974,21374.0,21373.0,0.0048402]
[1674240726579,2.57995143,21374.0,21373.0,0.0048402]
[1674240727356,2.48895143,21374.0,21373.0,0.0048402]
[1674240727604,2.57995143,21374.0,21373.0,0.0048402]
[1674240727939,2.48895143,21374.0,21373.0,0.0048402]
[1674240728110,2.57995143,21374.0,21373.0,0.0048402]
[1674240729945,0.15,21373.0,21372.0,0.00317113]
[1674240730219,2.70511523,21373.0,21372.0,0.00317113]
[1674240731063,2.79641146,21373.0,21372.0,0.00317113]
[1674240733406,1.82191371,21373.0,21372.0,0.00317113]
[1674240733410,1.67191371,21373.0,21372.0,0.00317113]
[1674240733665,0.43855926,21372.0,21371.0,0.00555096]
[1674240733921,0.76960526,21372.0,21371.0,0.00555096]
[1674240734181,0.43855926,21372.0,21371.0,0.12950096]
[1674240734452,0.43855926,21372.0,21371.0,0.27950096]
[1674240734719,0.52155926,21372.0,21371.0,0.74842396]
[1674240734993,0.43885508,21372.0,21371.0,0.82162396]
[1674240735248,0.08229582,21372.0,21371.0,0.82262396]
[1674240735506,0.00029582,21372.0,21371.0,0.82162396]
[1674240735772,0.00429582,21372.0,21371.0,1.29754696]
[1674240736034,0.00029582,21372.0,21371.0,1.32960996]
[1674240736563,0.05429582,21372.0,21371.0,1.33060996]
[1674240736825,0.05429582,21372.0,21371.0,1.29054696]
[1674240737385,0.00029582,21372.0,21371.0,1.13954696]
[1674240737649,0.00429582,21372.0,21371.0,1.14754696]
[1674240737908,0.004,21372.0,21371.0,0.92785531]
[1674240738150,0.058,21372.0,21371.0,1.07885531]
[1674240738648,0.058,21372.0,21371.0,0.92885531]
[1674240738898,0.43964048,21374.0,21372.0,0.15]
[1674240739147,0.43964048,21374.0,21372.0,0.617892]
[1674240739417,0.467809,21377.0,21372.0,0.617892]
[1674240739680,0.42487273,21376.0,21373.0,0.0748]
[1674240739935,0.42487273,21376.0,21373.0,0.542672]
[1674240740193,0.42487273,21376.0,21373.0,0.38216243]
[1674240741034,0.50787273,21376.0,21374.0,0.15]
[1674240741221,0.50787273,21376.0,21373.0,0.38316243]
[1674240741479,0.45167273,21376.0,21373.0,0.543661]
[1674240741717,0.6459937,21376.0,21373.0,0.0658]
[1674240741974,0.00030335,21375.0,21373.0,0.0658]
[1674240742753,0.00030335,21375.0,21373.0,0.73350321]
[1674240743008,0.00030335,21375.0,21374.0,0.05281736]
[1674240743259,0.00030335,21375.0,21373.0,0.532667]
[1674240743550,0.52352191,21375.0,21373.0,0.533667]
[1674240744276,0.08330335,21375.0,21373.0,0.533667]
[1674240744531,0.08330335,21375.0,21373.0,1.151547]
[1674240744841,0.08330335,21375.0,21374.0,0.0748]
[1674240745038,0.08330335,21375.0,21374.0,0.69779807]
[1674240745289,0.08330335,21375.0,21374.0,1.16565607]
[1674240745802,0.08330335,21375.0,21374.0,0.96538223]
[1674240746068,0.00030335,21375.0,21374.0,1.49048223]
[1674240746320,0.07630335,21375.0,21374.0,1.48948223]
[1674240746576,0.08430335,21375.0,21374.0,2.36853389]
[1674240746837,0.00030335,21375.0,21374.0,2.35253389]
[1674240747084,0.00730335,21375.0,21374.0,2.36853389]
[1674240747379,0.00030335,21375.0,21374.0,2.35253389]
[1674240747599,0.00030335,21375.0,21374.0,2.04784023]
[1674240747600,0.00730335,21375.0,21374.0,2.04784023]
[1674240747903,1.4426,21378.0,21375.0,0.00295282]
[1674240748162,1.4426,21378.0,21377.0,0.1496]
[1674240748411,1.4426,21378.0,21377.0,1.425222]
[1674240748873,1.4426,21378.0,21377.0,1.125222]
[1674240748875,1.4426,21378.0,21377.0,1.275222]
[1674240749646,1.4496,21378.0,21377.0,1.275222]
[1674240749913,1.4426,21378.0,21377.0,1.275222]
[1674240750160,0.007,21378.0,21377.0,1.297222]
[1674240750942,0.0007641,21379.0,21377.0,1.575222]
[1674240751220,0.0007641,21379.0,21378.0,0.2996]
[1674240751458,0.0007641,21379.0,21378.0,1.275172]
[1674240752509,0.0007641,21379.0,21378.0,1.575172]
[1674240752768,0.0077641,21379.0,21378.0,1.597172]
[1674240753035,0.0007641,21379.0,21378.0,1.575172]
[1674240753281,0.0077641,21379.0,21378.0,1.597172]
[1674240753549,0.0077641,21379.0,21378.0,1.297172]
[1674240753930,0.0077641,21379.0,21378.0,1.881172]
[1674240754855,0.0072141,21379.0,21378.0,1.881172]
[1674240755127,0.0072141,21379.0,21378.0,2.2020527]
[1674240755682,0.0072141,21379.0,21378.0,1.881172]
[1674240756199,0.0072141,21379.0,21378.0,2.048942]
[1674240757818,0.0072141,21379.0,21378.0,2.348942]
[1674240758076,0.0072141,21379.0,21378.0,2.048942]
[1674240758338,0.0072141,21379.0,21378.0,2.348942]
[1674240758848,0.00751776,21379.0,21378.0,2.348942]
[1674240760174,0.00751776,21379.0,21378.0,1.839842]
[1674240760502,0.00751776,21379.0,21378.0,2.064642]
[1674240761270,0.00751776,21379.0,21378.0,1.764642]
[1674240761540,0.20183873,21379.0,21378.0,1.614642]
[1674240762025,0.00751776,21379.0,21378.0,1.072072]
[1674240762287,0.00751776,21379.0,21378.0,1.03204]
[1674240762827,0.00751776,21379.0,21378.0,1.18204]
[1674240763602,0.00751776,21379.0,21378.0,1.222071]
[1674240763856,0.00751776,21379.0,21378.0,1.18204]
[1674240764461,0.52945073,21379.0,21378.0,0.48977]
[1674240765182,0.00751776,21379.0,21378.0,0.48977]
[1674240765462,0.00751776,21379.0,21378.0,0.95754]
[1674240765727,0.00751776,21379.0,21378.0,1.10754]
[1674240765989,0.02900364,21379.0,21378.0,1.10754]
[1674240766777,0.02900364,21379.0,21378.0,1.521771]
[1674240767562,0.02900364,21379.0,21378.0,1.221771]
[1674240768054,0.00761891,21379.0,21378.0,1.221771]
[1674240768347,0.00761891,21379.0,21378.0,1.211771]
[1674240768818,0.00761891,21379.0,21378.0,1.511771]
[1674240769085,0.02900364,21379.0,21378.0,1.511771]
[1674240770433,0.02900364,21379.0,21378.0,1.69908985]
[1674240770688,0.02900364,21379.0,21378.0,1.98308985]
[1674240770958,0.02859883,21379.0,21378.0,1.98308985]
[1674240772001,0.0072141,21379.0,21378.0,1.98308985]
[1674240774144,0.0072141,21379.0,21378.0,1.89308985]
[1674240775204,0.0072141,21379.0,21378.0,1.57339425]
[1674240775714,0.0072141,21379.0,21378.0,1.89286287]
[1674240775970,0.0072141,21379.0,21378.0,1.57339425]
[1674240777019,0.0072141,21379.0,21378.0,1.28979425]
[1674240777840,0.0072141,21379.0,21378.0,0.98979425]
[1674240777843,0.0072141,21379.0,21378.0,0.91499425]
[1674240778629,0.0072141,21379.0,21378.0,0.98979425]
[1674240778889,0.0072141,21379.0,21378.0,1.40128603]
[1674240779140,0.0072141,21379.0,21378.0,1.28979425]
[1674240779676,0.0072141,21379.0,21378.0,1.40128603]
[1674240779925,0.0072141,21379.0,21378.0,1.28979425]
[1674240780469,0.0072141,21379.0,21378.0,0.98979425]
[1674240780722,0.0072141,21379.0,21378.0,0.22262425]
[1674240780990,0.0072141,21379.0,21378.0,0.18259325]
[1674240781243,0.0072141,21379.0,21378.0,0.65036325]
[1674240781771,0.0072141,21379.0,21378.0,0.80036325]
[1674240782032,0.00512505,21381.0,21378.0,0.33259325]
[1674240782286,0.389462,21381.0,21378.0,0.65036325]
[1674240783086,0.02106021,21380.0,21378.0,0.65036325]
[1674240783338,0.325718,21379.0,21378.0,0.65036325]
[1674240783583,0.02106021,21380.0,21378.0,0.65036325]
[1674240784140,0.02106021,21380.0,21379.0,0.15]
[1674240784642,0.02106021,21380.0,21379.0,0.617748]
[1674240784901,0.006,21380.0,21379.0,1.500323]
[1674240785634,0.006,21380.0,21379.0,2.54709743]
[1674240785641,0.00512505,21381.0,21379.0,2.54709743]
[1674240785900,0.006,21380.0,21379.0,1.80876462]
[1674240786147,0.006,21380.0,21379.0,1.529321]
[1674240786640,0.006,21380.0,21379.0,1.229321]
[1674240786895,0.00512505,21381.0,21379.0,1.200321]
[1674240787169,0.01112505,21381.0,21379.0,1.189296]
[1674240787455,0.00512505,21381.0,21380.0,0.040022]
[1674240787702,0.00512505,21381.0,21380.0,1.125474]
[1674240788199,0.01112505,21381.0,21380.0,1.125473]
[1674240788447,0.00512505,21381.0,21380.0,1.425473]
[1674240788695,0.01112505,21381.0,21380.0,1.153473]
[1674240789982,0.01112505,21381.0,21380.0,1.453473]
[1674240790538,0.01112505,21381.0,21380.0,2.38880134]
[1674240790747,0.01112505,21381.0,21380.0,1.153473]
[1674240791011,0.01112505,21381.0,21380.0,2.2002807]
[1674240791269,0.01112505,21381.0,21380.0,2.08878892]
[1674240791545,0.01112505,21381.0,21380.0,2.5002807]
[1674240791877,0.01112505,21381.0,21380.0,1.153473]
[1674240793353,0.01112505,21381.0,21380.0,2.50028781]
[1674240793623,0.01112505,21381.0,21380.0,2.20028781]
[1674240794120,0.01112505,21381.0,21380.0,2.50028781]
[1674240794628,0.01112505,21381.0,21380.0,2.20028781]
[1674240795906,0.01112505,21381.0,21380.0,2.50028781]
[1674240796420,0.01112505,21381.0,21380.0,2.66752548]
[1674240796674,0.01112505,21381.0,21380.0,2.66485406]
[1674240796941,0.01112505,21381.0,21380.0,2.77648797]
[1674240797183,0.01112505,21381.0,21380.0,2.66766761]
[1674240797448,0.01112505,21381.0,21380.0,2.66485699]
[1674240797691,0.01112505,21381.0,21380.0,2.77649209]
[1674240797953,0.01112505,21381.0,21380.0,2.66485699]
[1674240798451,0.01112505,21381.0,21380.0,2.88784055]
[1674240799253,0.01112505,21381.0,21380.0,3.26312888]
[1674240799724,0.00560976,21381.0,21380.0,3.43441394]
[1674240799997,0.00560976,21381.0,21380.0,3.64462239]
[1674240800871,0.00560976,21381.0,21380.0,3.97921652]
[1674240801835,0.00560976,21381.0,21380.0,3.97912361]
[1674240802093,0.00560976,21381.0,21380.0,3.97911794]
[1674240802845,0.00560976,21381.0,21380.0,3.65964932]
[1674240803439,0.00560976,21381.0,21380.0,3.97911794]
[1674240805549,0.00254687,21381.0,21380.0,3.67879604]
[1674240805803,0.00254687,21381.0,21380.0,4.09602085]
[1674240806117,0.00254687,21381.0,21380.0,3.72763113]
[1674240806575,0.01018553,21383.0,21380.0,3.69963113]
[1674240806839,0.01018553,21383.0,21382.0,0.0742]
[1674240807091,0.01018553,21383.0,21382.0,3.02909232]
[1674240807387,0.01018553,21383.0,21382.0,3.32909232]
[1674240807618,0.01018553,21383.0,21382.0,3.49620872]
[1674240808440,0.01018553,21383.0,21382.0,3.81567734]
[1674240808745,0.01018553,21383.0,21382.0,4.20229921]
[1674240808998,0.01018553,21383.0,21382.0,3.94618281]
[1674240809252,0.01018553,21383.0,21382.0,4.355787]
[1674240809510,0.00617555,21383.0,21382.0,3.49289232]
[1674240810293,0.00117555,21383.0,21382.0,3.40389232]
[1674240810563,0.00117555,21383.0,21382.0,3.77133242]
[1674240810823,0.00117555,21383.0,21382.0,3.99276691]
[1674240811078,0.00117555,21383.0,21382.0,3.76995736]
[1674240811567,0.00117555,21383.0,21382.0,3.66240598]
[1674240811569,0.00117555,21383.0,21382.0,3.57340598]
[1674240811837,0.00117555,21383.0,21382.0,3.88148481]
[1674240812100,0.00117555,21383.0,21382.0,4.20095343]
[1674240812365,0.00117555,21383.0,21382.0,4.03383644]
[1674240812624,0.00117555,21383.0,21382.0,4.31227654]
[1674240813396,0.00117555,21383.0,21382.0,4.35412735]
[1674240813652,0.00117555,21383.0,21382.0,4.11334571]
[1674240813952,0.00117555,21383.0,21382.0,4.18784571]
[1674240814262,0.00117555,21383.0,21382.0,3.32526352]
[1674240815888,0.00117555,21383.0,21382.0,3.49230255]
[1674240816180,0.00117555,21383.0,21382.0,3.71502125]
[1674240816906,0.00117555,21383.0,21382.0,3.64052125]
[1674240818199,0.01001095,21384.0,21382.0,3.64052125]
[1674240818200,0.0011865,21384.0,21383.0,0.15]
[1674240818465,0.0011865,21384.0,21383.0,2.50640531]
[1674240818717,0.0011865,21384.0,21383.0,1.57127365]
[1674240818984,0.0011865,21384.0,21383.0,2.50640187]
[1674240819319,0.0011865,21384.0,21383.0,1.66027365]
[1674240820213,0.00106786,21384.0,21383.0,2.59540733]
[1674240820479,0.00106786,21384.0,21383.0,2.76244636]
[1674240821266,0.0002,21386.0,21383.0,2.76244636]
[1674240821267,0.00922623,21387.0,21384.0,0.15]
[1674240821557,0.00922623,21387.0,21385.0,1.402851]
[1674240821851,0.00922623,21387.0,21386.0,0.45]
[1674240822124,0.00922623,21387.0,21386.0,1.38519]
[1674240822391,0.00922623,21387.0,21386.0,2.4315783]
[1674240822924,0.00922623,21387.0,21386.0,1.49654165]
[1674240823511,0.00922623,21387.0,21386.0,1.38519]
[1674240824017,0.00922623,21387.0,21386.0,1.23519]
[1674240824586,0.00922623,21387.0,21386.0,1.47519]
[1674240825583,0.00922623,21387.0,21386.0,1.02519]
[1674240826378,0.00922623,21387.0,21386.0,1.47519]
[1674240828104,0.03152821,21387.0,21386.0,1.47519]
[1674240828634,0.03152821,21387.0,21386.0,1.17519]
[1674240829376,0.03152821,21387.0,21386.0,1.47519]
[1674240829907,0.00922623,21387.0,21386.0,1.47519]
[1674240831260,0.00922623,21387.0,21386.0,2.90454863]
[1674240831784,0.00922623,21387.0,21386.0,2.46710035]
[1674240832039,0.00922623,21387.0,21386.0,2.68981905]
[1674240832558,0.00922623,21387.0,21386.0,2.59698002]
[1674240832560,0.00922623,21387.0,21386.0,2.8753784]
[1674240832820,0.00922623,21387.0,21386.0,2.43889574]
[1674240833822,0.00922623,21387.0,21386.0,1.12089646]
[1674240835113,0.00922623,21387.0,21386.0,2.48548747]
[1674240835365,0.00922623,21387.0,21386.0,2.48548764]
[1674240835886,0.00566455,21387.0,21386.0,2.47988125]
[1674240836428,0.00566455,21387.0,21386.0,2.16166903]
[1674240836685,0.00566455,21387.0,21386.0,2.44005343]
[1674240837729,0.00566455,21387.0,21386.0,1.23228432]
[1674240838244,0.00566455,21387.0,21386.0,2.16730989]
[1674240838849,0.00566455,21387.0,21386.0,1.23228432]
[1674240839340,0.19998552,21387.0,21386.0,0.74669646]
[1674240839610,0.00566455,21387.0,21386.0,0.70808432]
[1674240839874,0.00566455,21387.0,21386.0,2.17840599]
[1674240840183,0.0050981,21387.0,21386.0,2.01132419]
[1674240840438,0.0050981,21387.0,21386.0,2.28970859]
[1674240840696,0.0050981,21387.0,21386.0,1.79323201]
[1674240840954,0.0050981,21387.0,21386.0,2.44168708]
[1674240841494,0.0050981,21387.0,21386.0,2.16293344]
[1674240842017,0.0050981,21387.0,21386.0,2.49712402]
[1674240842530,0.0032981,21387.0,21386.0,2.49712402]
[1674240842873,0.0032981,21387.0,21386.0,2.55322122]
[1674240843055,0.0032981,21387.0,21386.0,2.75992265]
[1674240843310,0.0032981,21387.0,21386.0,2.48114566]
[1674240843827,0.0032981,21387.0,21386.0,2.47114566]
[1674240844095,0.0032981,21387.0,21386.0,2.36378828]
[1674240844882,0.0032981,21387.0,21386.0,2.48730502]
[1674240845141,0.0032981,21387.0,21386.0,2.65462002]
[1674240845430,0.0032981,21387.0,21386.0,2.43164724]
[1674240845953,0.00361447,21387.0,21386.0,2.43164724]
[1674240847801,0.00361447,21387.0,21386.0,2.65461538]
[1674240849310,0.00361447,21387.0,21386.0,2.37590158]
[1674240849573,0.00361447,21387.0,21386.0,2.54313239]
[1674240850121,0.00361447,21387.0,21386.0,2.46873239]
[1674240850372,0.00361447,21387.0,21386.0,2.58021538]
[1674240850900,0.00361447,21387.0,21386.0,2.30150158]
[1674240850901,0.00361447,21387.0,21386.0,2.58021538]
[1674240851190,0.00361447,21387.0,21386.0,2.30150158]
[1674240851698,0.00361447,21387.0,21386.0,2.4687454]
[1674240853532,0.00361447,21387.0,21386.0,2.30150158]
[1674240853781,0.00217195,21387.0,21386.0,2.41290502]
[1674240854605,0.00217195,21387.0,21386.0,2.30155275]
[1674240855392,0.00217195,21387.0,21386.0,2.58032689]
[1674240855649,0.00217195,21387.0,21386.0,2.30155275]
[1674240856258,0.00217195,21387.0,21386.0,2.05999225]
[1674240857031,0.00217195,21387.0,21386.0,1.78326058]
[1674240857597,0.00217195,21387.0,21386.0,2.08326058]
[1674240857866,0.44191239,21387.0,21386.0,0.69822649]
[1674240858122,0.77944939,21387.0,21386.0,1.80063526]
[1674240858394,0.77944939,21387.0,21386.0,1.63334022]
[1674240858959,0.77944939,21387.0,21386.0,0.73422649]
[1674240859211,0.33970895,21387.0,21386.0,0.62269646]
[1674240860300,0.67568306,21387.0,21386.0,0.62269646]
[1674240860806,0.67568306,21387.0,21386.0,0.15510146]
[1674240861069,0.67568306,21387.0,21386.0,0.126]
[1674240861070,0.75048306,21387.0,21386.0,0.126]
[1674240861331,1.61827464,21387.0,21386.0,0.126]
[1674240861586,2.1464703,21387.0,21386.0,0.126]
[1674240861854,2.08144223,21387.0,21386.0,0.126]
[1674240862108,2.51846556,21387.0,21386.0,0.126]
[1674240862366,2.23144223,21387.0,21386.0,0.126]
[1674240862699,1.29629623,21387.0,21386.0,0.036]
[1674240862893,1.77086923,21387.0,21386.0,0.043]